Cogmind - Beta 16 *** ADVENTURER MODE // 2025.11.18 @ 02:26:57 Player: oshi0ne1 Result: Destroyed by D-53 Grenadier with Mini Grenade Launcher Performance ------------- Evolutions (1) 500 Regions Visited (4) 800 Robots Destroyed (70) 350 Value Destroyed (1680) 1680 Prototype IDs (3) 60 Alien Tech Used (0) 0 Bonus (0) 0 TOTAL SCORE: 3390 Bonus ------- None Cogmind --------- Core Integrity 0/400 Matter 290/300 Energy 265/265 System Corruption 0% Temperature Cool (0) Movement Treading (240) Ox1 Location -9/Mines Parts ------- > --- POWER (1) -------- Improved Ion Engine > --- PROPULSION (2) --- Light Treads Light Treads > --- UTILITY (4) ------ High-capacity Storage Unit Signal Interpreter Advanced Targeting Computer > --- WEAPON (2) ------- Grenade Launcher > --- INVENTORY (20) --- Ion Engine Ion Engine Ion Engine Light Treads Light Treads Scrap Suit Experimental Sensor Array Terrain Scan Processor Heavy Assault Rifle Peak State ------------ > --- POWER ------------ Improved Ion Engine > --- PROPULSION ------- Light Treads Light Treads > --- UTILITY ---------- High-capacity Storage Unit Experimental Sensor Array Signal Interpreter Advanced Targeting Computer > --- WEAPON ----------- Light Assault Rifle Heavy Assault Rifle > --- INVENTORY -------- Ion Engine Ion Engine Ion Engine Light Treads Light Treads Light Treads Terrain Scan Processor Grenade Launcher [Rating: 21] Favorites ----------- Power Light Ion Engine Engine Light Ion Engine Power Core Light Nuclear Core Propulsion Light Treads Treads Light Treads Wheel Compact Wheel Utility High-capacity Storage Unit Device Sensor Array Storage High-capacity Storage Unit Processor Signal Interpreter Weapon Light Assault Rifle Energy Gun EM Pulse Gun Ballistic Gun Light Assault Rifle Ballistic Cannon Light Cannon Launcher Grenade Launcher Build | -11 -10 -10 -9 -9 ------- Run | Yrd Mat Min Mat Min Slots Evolved 2 | . . . 2 . Power . | . . . . . Propulsion . | . . . . . Utility 2 | . . . 2 . Weapon . | . . . . . Parts Attached 39 | 7 6 3 20 3 Power 7 | 2 . . 4 1 Engine 5 | 2 . . 2 1 Core 2 | . . . 2 . Reactor . | . . . . . Propulsion 12 | 2 . 2 8 . Treads 10 | 2 . . 8 . Leg . | . . . . . Wheel 2 | . . 2 . . Hover . | . . . . . Flight . | . . . . . Utility 10 | 1 4 . 4 1 Device 5 | . 2 . 2 1 Storage 3 | 1 2 . . . Processor 2 | . . . 2 . Hackware . | . . . . . Protection . | . . . . . Artifact . | . . . . . Weapon 10 | 2 2 1 4 1 Energy Gun 2 | 1 . . 1 . Energy Cannon . | . . . . . Ballistic Gun 4 | 1 . . 3 . Ballistic Cannon 2 | . 1 1 . . Launcher 2 | . 1 . . 1 Special Weapon . | . . . . . Impact Weapon . | . . . . . Slashing Weapon . | . . . . . Piercing Weapon . | . . . . . Special Melee Weapon . | . . . . . Unidentified Prototypes 1 | . . . . 1 Parts Lost 18 | . . 5 11 2 Power 4 | . . 1 3 . Propulsion 5 | . . 1 3 1 Utility 4 | . . 1 3 . Weapon 5 | . . 2 2 1 Highest Loss Streak 2 | . . 2 2 2 To Critical Strikes 1 | . . . 1 . Average Backups 9 | 2 7 9 10 7 Power 2 | . 1 1 3 2 Propulsion 2 | 1 2 1 2 2 Utility 2 | . 2 4 2 1 Weapon 1 | . 1 1 2 1 Tool/Special . | . . . . . Unused Backups 2 | . . . . 2 Power 1 | . . . . 1 Propulsion . | . . . . . Utility 1 | . . . . 1 Weapon . | . . . . . Tool/Special . | . . . . . Average Slot Usage (%) 94 | . 97 94 93 92 Engine 10 | . 14 13 3 10 Core 2 | . . . 7 . Treads 22 | . 28 25 17 21 Wheel 2 | . . 2 3 . Device 13 | . 11 12 17 7 Storage 12 | . 14 14 11 11 Processor 6 | . . . 12 22 Energy Gun 6 | . 13 4 7 . Ballistic Gun 10 | . 1 12 12 13 Ballistic Cannon 5 | . 12 7 1 . Peak Build Rating 21 | 6 8 9 15 21 Average Rating 10 | 3 7 7 12 17 On Entrance 6 | . 6 8 8 12 Avg Prop Armor Cover (%) . | . . . . . Naked Turns . | . . . . . Heaviest Build 54 | 11 49 49 51 54 Greatest Support 40 | 40 40 40 40 40 Greatest Overweight (x) 3 | . 1 1 3 1 Average Overweight (x) . | . . 1 1 1 Largest Inventory Capacity 20 | 8 20 20 20 20 Average Capacity 19 | 7 15 20 20 20 Most Carried 13 | 5 10 11 13 11 Average Carried 9 | 2 7 9 10 8 Final Capacity 20 | 8 20 20 20 20 Final Carried 10 | 3 9 10 8 10 Class Distribution -------------------- 66% | Mutant 19% | Scavenger-Skirmisher 12% | Scavenger-Mutant Dominant Class ---------------- Mutant | -10/Materials Mutant | -10/Mines Scavenger-Skirmisher | -9/Materials Scavenger-Mutant | -9/Mines Resources | -11 -10 -10 -9 -9 ----------- Run | Yrd Mat Min Mat Min Matter Collected 1374 | 234 136 366 456 182 Remotely . | . . . . . Salvage Created 2245 | . 382 368 1400 95 Parts 157 | . 29 31 97 . Haulers Intercepted . | . . . . . Recyclers Shooed 1 | . . . 1 . Parts Field Recycled . | . . . . . Retrieved Matter . | . . . . . Parts Self-Destructed . | . . . . . Prevented . | . . . . . Parts Restored . | . . . . . Kills | -11 -10 -10 -9 -9 ------- Run | Yrd Mat Min Mat Min Combat Hostiles Destroyed 65 | . 6 14 38 7 Guns 55 | . 3 9 36 7 Cannons 10 | . 3 5 2 . Classes Destroyed 10 | . 5 2 3 . Worker 1 | . . . 1 . Builder 4 | . 4 . . . Tunneler 2 | . . 2 . . Recycler 2 | . 1 . 1 . Watcher 4 | . 3 . 1 . Swarmer 22 | . 3 5 14 . Grunt 26 | . 3 8 15 . Brawler 1 | . . . 1 . Sentry 8 | . . . 8 . Assembled 8 | . . 1 . 7 Best Kill Streak 7 | . 6 6 7 5 Combat Bots Only 7 | . 3 4 7 5 Max Kills in Single Turn 2 | . 2 2 1 1 Gunslinging . | . . . . . Exploded . | . . . . . Melee . | . . . . . Uniques/NPCs Destroyed . | . . . . . Combat | -11 -10 -10 -9 -9 -------- Run | Yrd Mat Min Mat Min Hostile Shots Fired 369 | . 19 95 214 41 Missed 105 | . 6 28 60 11 Hits 264 | . 13 67 154 30 Melee 5 | . . . . 5 Projectile 259 | . 13 67 154 25 AOE 10 | . . . . 10 Critical Strikes 3 | . 1 . 2 . Damage Taken 2853 | . 180 643 1436 594 Core 520 | . 27 86 274 133 Absorbed by Shields . | . . . . . Ignored by Resistances 836 | . 55 192 423 166 Core Remaining (%) 77 | 100 . 54 . . Volleys Fired 214 | . 27 50 112 25 Largest 2 | . 2 2 2 2 Hottest 70 | . 70 70 60 50 Shots Fired 377 | . 52 76 204 45 Gun 307 | . 25 44 199 39 Cannon 53 | . 25 24 4 . Launcher 17 | . 2 8 1 6 Special . | . . . . . Kinetic 255 | . 25 53 138 39 Thermal 65 | . . . 65 . Explosive 17 | . 2 8 1 6 Electromagnetic 40 | . 25 15 . . Robot Hit Streak 41 | . 7 17 32 41 Robot Miss Streak 3 | . 3 3 2 1 Penetration Max . | . . . . . Secondary Targets 9 | . . 1 7 1 Max Gunslinging Chain 1 | . . 1 1 1 Shots Hit Robots 283 | . 32 49 164 38 Core Hits 139 | . 15 27 78 19 Critical Kills . | . . . . . Critical Parts Destroyed 1 | . . 1 . . Critical Strikes 3 | . 1 1 1 . Destroy 2 | . . 1 1 . Blast 1 | . 1 . . . Melee Attacks . | . . . . . Impact . | . . . . . Slashing . | . . . . . Piercing . | . . . . . Sneak Attacks . | . . . . . Combat Hostiles . | . . . . . Follow-up Attacks . | . . . . . Damage Inflicted 3408 | . 611 762 1625 410 Guns 2520 | . 272 341 1548 359 Cannons 569 | . 209 286 74 . Explosions 286 | . 130 105 . 51 Melee . | . . . . . Ramming 33 | . . 30 3 . Kinetic 2030 | . 209 461 1001 359 Thermal 798 | . 110 67 621 . Explosive 109 | . 20 38 . 51 Electromagnetic 438 | . 272 166 . . Impact . | . . . . . Slashing . | . . . . . Piercing . | . . . . . Highest Corruption . | . . . . . Average Corruption . | . . . . . Corruption Purged . | . . . . . Corruption Blocked . | . . . . . Overload Shots . | . . . . . Overflow Damage 28 | . . 28 . . Projectiles . | . . . . . Explosions 28 | . . 28 . . Melee . | . . . . . Knockbacks 6 | . 1 4 1 . Impact . | . . . . . Kinetic 6 | . 1 4 1 . Secondary . | . . . . . Self-Inflicted Damage 221 | . 41 147 8 25 Shots 11 | . 2 6 1 2 Rammed 3 | . . 2 1 . Targets Rammed 3 | . . 2 1 . Kicked . | . . . . . Crushed . | . . . . . Highest Temperature 126 | . 126 56 69 19 Average Temperature 24 | . 37 20 21 19 Received Heat Transfer 976 | . 81 195 600 100 Siege Activations . | . . . . . Martial Activations . | . . . . . Shielding Activations . | . . . . . Robots Disrupted . | . . . . . Combat Hostiles . | . . . . . Robots Corrupted . | . . . . . Combat Hostiles . | . . . . . Parts Fried 2 | . 1 1 . . Impact Corruptions . | . . . . . Robots Melted . | . . . . . Combat Hostiles . | . . . . . Parts Melted . | . . . . . Heat Transferred 1600 | . 100 100 1400 . Parts Sabotaged . | . . . . . Parts Stolen . | . . . . . Parts Stripped . | . . . . . Power Chain Reactions 4 | . 3 1 . . Alert | -11 -10 -10 -9 -9 ------- Run | Yrd Mat Min Mat Min Maximum Alert Level . | . . . . . Low Security (%) 100 | 100 100 100 100 100 Level 1 . | . . . . . Level 2 . | . . . . . Level 3 . | . . . . . Level 4 . | . . . . . Level 5 . | . . . . . High Security . | . . . . . Max Security . | . . . . . Peak Influence 178 | . 82 70 178 15 Initial 3 | . . . . 3 Average 26 | . 19 6 63 . Influence Increases 1647 | . 223 338 1059 27 Destroy 0b10 Robot/C 1140 | . 120 260 760 . Destroy 0b10 Robot/NC 65 | . 40 10 15 . Destroy Leader 258 | . 26 40 192 . Successful Hack 42 | . 4 . 38 . Disable Machine 27 | . 9 . 9 9 Destroy Structure 85 | . 24 28 15 18 Lose Combat Pursuer 30 | . . . 30 . Influence Decreases 1635 | . 223 338 1046 28 Entered New Map 10 | . . . . 10 Time Decay 1461 | . 223 294 936 8 Lost Part 164 | . . 44 110 10 Squads Dispatched 6 | . . . 6 . Investigation 3 | . . . 3 . Extermination . | . . . . . Reinforcement 3 | . . . 3 . Assault . | . . . . . Garrison . | . . . . . Intercept . | . . . . . Searches Triggered . | . . . . . Construction Impeded . | . . . . . Haulers Reinforced . | . . . . . Active Scanning Responses . | . . . . . Cargo Convoy Interrupts . | . . . . . Stealth | -11 -10 -10 -9 -9 --------- Run | Yrd Mat Min Mat Min Distress Signals 3 | . . . 3 . Communications Jammed . | . . . . . Distress Signals . | . . . . . Times Spotted 79 | . 9 15 46 9 Peak Tracking Total 5 | . 3 3 5 3 Tactical Retreats 1 | . . . 1 . Traps | -11 -10 -10 -9 -9 ------- Run | Yrd Mat Min Mat Min Traps Triggered 1 | . 1 . . . Indirectly . | . . . . . Trap Hack Attempts . | . . . . . Triggered . | . . . . . Disarmed . | . . . . . Reprogrammed . | . . . . . Reused . | . . . . . Traps Extracted . | . . . . . Installed . | . . . . . Triggered . | . . . . . Machines | -11 -10 -10 -9 -9 ---------- Run | Yrd Mat Min Mat Min Machines Disabled 3 | . 1 . 1 1 Max in Single Turn 1 | . 1 . 1 1 Machines Repaired . | . . . . . Machines Dismantled . | . . . . . Machines Sabotaged . | . . . . . Overloaded Fab Kills . | . . . . . Hacking | -11 -10 -10 -9 -9 --------- Run | Yrd Mat Min Mat Min Machines Accessed 9 | . 6 . 3 . Terminals 6 | . 3 . 3 . Fabricators . | . . . . . Repair Stations 1 | . 1 . . . Recycling Units 2 | . 2 . . . Scanalyzers . | . . . . . Garrison Access . | . . . . . Total Hacks 20 | . 10 . 10 . Successful 11 | . 7 . 4 . Failed 9 | . 3 . 6 . Catastrophic 1 | . . . 1 . Database Lockouts . | . . . . . Manual . | . . . . . Terminals 15 | . 5 . 10 . Fabricators . | . . . . . Repair Stations 3 | . 3 . . . Recycling Units 2 | . 2 . . . Scanalyzers . | . . . . . Garrison Access . | . . . . . Terminal Hacks 8 | . 4 . 4 . Prototype ID Bank 1 | . 1 . . . Branch Access Points 1 | . . . 1 . Emergency Access Points 1 | . . . 1 . Alert Level 2 | . 1 . 1 . Investigation Status 1 | . . . 1 . Zone Layout 2 | . 2 . . . Fabricator Hacks . | . . . . . Repair Station Hacks 1 | . 1 . . . Scan Component 1 | . 1 . . . Recycling Unit Hacks 2 | . 2 . . . Report Inventory 2 | . 2 . . . Scanalyzer . | . . . . . Garrison Access Hacks . | . . . . . Unauthorized Hacks . | . . . . . Terminals . | . . . . . Fabricators . | . . . . . Repair Stations . | . . . . . Recycling Units . | . . . . . Scanalyzers . | . . . . . Garrison Access . | . . . . . Data Cores Recovered . | . . . . . Used . | . . . . . Hacking Detections 5 | . 2 . 3 . Full Trace Events 4 | . 1 . 3 . Feedback Events . | . . . . . Feedback Blocked . | . . . . . Robot Schematics Acquired . | . . . . . Robots Built . | . . . . . Authchips . | . . . . . Time . | . . . . . Total Robot Build Rating . | . . . . . Part Schematics Acquired . | . . . . . Parts Built . | . . . . . Authchips . | . . . . . Time . | . . . . . Total Part Build Rating . | . . . . . Part Studies Acquired . | . . . . . Parts Repaired . | . . . . . Time . | . . . . . Parts Recycled . | . . . . . Recycled Matter . | . . . . . Retrieved Matter . | . . . . . Retrieved Components . | . . . . . Parts Scanalyzed . | . . . . . Part Schematics Acquired . | . . . . . Parts Damaged . | . . . . . Bothacking | -11 -10 -10 -9 -9 ------------ Run | Yrd Mat Min Mat Min Used RIF Installer . | . . . . . Robots Hacked . | . . . . . Non-combat . | . . . . . Combat . | . . . . . Robot Hacks Applied . | . . . . . Relay Couplers Released . | . . . . . Fabnet Peak Effective % . | . . . . . Robots Rewired . | . . . . . Allies Hacked . | . . . . . Hacks Repelled . | . . . . . Allies | -11 -10 -10 -9 -9 -------- Run | Yrd Mat Min Mat Min Total Allies . | . . . . . Largest Group . | . . . . . Highest-Rated Group . | . . . . . Highest-Rated Ally . | . . . . . Total Orders . | . . . . . Ally Attacks . | . . . . . Total Damage . | . . . . . Kills . | . . . . . Allies Corrupted . | . . . . . Allies Melted . | . . . . . Intel | -11 -10 -10 -9 -9 ------- Run | Yrd Mat Min Mat Min Active Infowar (turns) 5141 | . 761 2246 1709 425 Sensors 4601 | . 543 2246 1387 425 Terrain 1108 | . . . 1108 . Structural 1030 | . 218 . 812 . Robot Analysis Total . | . . . . . Derelict Logs Recovered 3 | . . 2 . 1 Drone Launches . | . . . . . Drone Recoveries . | . . . . . Exploration | -11 -10 -10 -9 -9 ------------- Run | Yrd Mat Min Mat Min Turns Passed 6283 | 81 919 2605 2050 628 Spaces Moved 2670 | 51 407 1157 826 229 Core 15 | 15 . . . . Treads 2161 | 36 407 918 571 229 Legs . | . . . . . Wheels 494 | . . 239 255 . Hover . | . . . . . Flight . | . . . . . Fastest Speed 50 | 50 160 105 105 240 Average Speed 208 | 127 202 212 202 240 Slowest Speed 320 | 160 240 240 320 240 Overloaded Moves . | . . . . . Propulsion Burnouts . | . . . . . Robots Hopped . | . . . . . Potential Cave-ins . | . . . . . Cave-ins Triggered . | . . . . . Exploration Rate (%) 52 | 5 58 100 56 43 Regions Visited 4 Branch Regions 2 Pre-discovered Areas 1 | . . 1 . . Known Exits Taken 1 | . . . 1 . Unknown Exits Taken 3 | 1 1 1 . . Scrap Searched 3 | . . 2 . 1 Spaces Dug . | . . . . . Terrain Destroyed 114 | . 23 46 14 31 Melee . | . . . . . Projectile . | . . . . . AOE 114 | . 23 46 14 31 Terrain Rammed 1 | . . 1 . . Walls Destroyed . | . . . . . Machines Disabled . | . . . . . Actions | -11 -10 -10 -9 -9 --------- Run | Yrd Mat Min Mat Min Total 3039 | 66 449 1237 1020 267 Wait 33 | . . 5 25 3 Move 2666 | 50 406 1156 825 229 Hop . | . . . . . Pick Up 34 | 8 6 5 14 1 Fast Attach 7 | 2 2 1 2 . Attach 31 | 4 1 7 15 4 Detach 12 | . 1 4 4 3 Swap 24 | 1 4 5 12 2 Drop 14 | 1 2 1 10 . Fire 214 | . 27 50 112 25 Melee . | . . . . . Ram 3 | . . 3 . . Kick . | . . . . . Crush 1 | . . . 1 . Escape Stasis . | . . . . . Rewire . | . . . . . Trap . | . . . . . Miscellaneous . | . . . . . Route ------- -11/Scrapyard -10/Materials (discovered 3 exits: *Mat x2 / [*Min]) -10/Mines (discovered 3 exits: *Mat x2 / [*Sub]) -9/Materials (discovered 6 exits: *Mat x3 / *Min x2 / *Sto) -9/Mines (discovered 2 exits: *Mat x2) History --------- Turn | Location | Event 7 | -11/Scrapyard | Discovered new exit (range 16) 82 | -11/Scrapyard | Entered Materials 301 | -10/Materials | Discovered new exit (range 10) 318 | -10/Materials | Build established: Mutant 881 | -10/Materials | Discovered new exit (range 4) 960 | -10/Materials | Discovered new exit (range 14) 1001 | -10/Materials | Entered Mines 1083 | -10/Mines | Discovered new exit (range 6) 1119 | -10/Mines | Discovered new exit (range 8) 1475 | -10/Mines | Learned 8 Materials zone layouts 2198 | -10/Mines | Learned Materials interactive machine intel 2648 | -10/Mines | Discovered new exit (range 6) 2649 | -10/Mines | Learned location of Storage (-9) 3152 | -10/Mines | Found a damaged Exp. Sensor Array with a note attached 3161 | -10/Mines | Found Prototype Device 3219 | -10/Mines | Excavation squad dispatched 3219 | -10/Mines | A large section of the Mines collapsed 3606 | -10/Mines | Entered Materials 3606 | -9/Materials | Evolved 2 slots: Utility x2 3607 | -9/Materials | Identified exit to Mines 3607 | -9/Materials | Identified exit to Materials 3608 | -9/Materials | Loaded intel: 18 interactive machine locations 3681 | -9/Materials | Identified exit to Storage 3872 | -9/Materials | Destroyed 7 combat bots 4282 | -9/Materials | Build established: Scavenger-Skirmisher 5298 | -9/Materials | Core integrity fell below 50% 5360 | -9/Materials | Discovered exit to Materials (range 9) 5656 | -9/Materials | Entered Mines 5656 | -9/Mines | Identified Exp. Sensor Array 5677 | -9/Mines | Build established: Scavenger-Mutant 5720 | -9/Mines | Discovered exit to Materials (range 12) 5781 | -9/Mines | Discovered exit to Materials (range 7) 5861 | -9/Mines | Learned Materials emergency access door positions 5869 | -9/Mines | Assembled infested the area 5874 | -9/Mines | Assisted by a Guerilla fighting off Assembled 5959 | -9/Mines | Core integrity fell below 20% 6231 | -9/Mines | Found a Scrap Suit stashed away for nefarious purposes 6236 | -9/Mines | Found Scrap Suit 6283 | -9/Mines | Build established: Mutant 6284 | -9/Mines | Destroyed by D-53 Grenadier with Mini Grenade Launcher Last Messages --------------- U-05 Engineer builds a Wall. The unstable cave ceiling collapses. Lgt. Assault Rifle destroyed. D-53 Grenadier destroyed. The unstable cave ceiling collapses. U-05 Engineer builds a Wall. The unstable cave ceiling collapses. K-01 Serf collects debris. Acquired 76 matter. A message is left with an item here: "H4-X0R! I managed to smuggle one out! Take this to the hideout, the fools near Old Recycling think they can use this tech to beat 0b10 one day, and now we just have to find a way to safely deliver this to MAIN.C to get on their good side and convince them to let us into the system." Acquired Scrap Suit. Seismic Survey Station disabled. The unstable cave ceiling collapses. Map ----- +----------------------------------------------------+ | | | | | | | | | | | | | ????????????????????????????????????????? | | ????????????????????????????????????????? | | ????########????????????????????????????? | | ???## ##?????????????????#####?????? | | ??## ################### #?????? | | ??# % ## #?????? | | ### ## #?????? | | # #################### #?????? | | #?????????????????#### ##?????? | | #???????????????????## #??????? | | # #?????????????????### #??????? | | #????????????????## ##??????? | | ## #????????????????# ##???????? | | #?##????###########?# ##????????? | | ##?#?????# #?## ######?????? | | "##? ??????# """ """ #####=### ##????? | | #? ##?????# """ " " # #*## #????? | | ## ??????# """ "" #= #????? | | # ???????# %=## ##???? | | # ## ???????# """ " d @ %## ##??? | | # # ????????# """ " # #??? | | # #??????#### """ " u < [ #??? | | # #??????# !%= % ## ### !% ##??? | | # ######## ## #### #?## =##???? | | #??# #??## ##???? | | ###### ! !! ##########??# #???# #???? | | # #?# !!!! # ##????????# #???# ##??? | | ####?# !!!! #????????# #???## ##?? | | #???# !!! #?####???# #????## #?? | | #??# ### #???# #????## #?? | | #?#### ### ##### #???## #?? | | # ???#######?# #?### #?? | | ?# ?????????## < ######### #?? | | ??# #???????## ##????## #?? | | ???# #???????# #???## ##?? | | ????# ???????# #???# ##??? | | ????? ???????## ##???# ##??? | | ?????? ??????????######????# #??? | | ???????????????????????????## #??? | | ????????????????????????????### ##??? | | ??????????????????????????????## ##???? | | ???????????????????????????????## ##????? | | ????????????????????????????????# #?????? | | ????????????????????????????????# #?????? | +----------------------------------------------------+ Best States ------------- Heat Dissipation 28 Energy Generation 14 Energy Capacity 265 Matter Stores 300 Matter Capacity 300 Sight Range 16 Robot Scan Range 20 Terrain Scan Range 16 Terrain Scan Density 10 Resistance: KI 20 Resistance: TH 20 Resistance: EX 20 Resistance: EM 20 Resistance: I 20 Resistance: S 20 Resistance: P 20 Evasion (%) 50 Targeting Accuracy 8 Recoil Reduction 2 Offensive Hacking 10 Item Schematics ----------------- None Robot Schematics ------------------ None Fabricated ------------ Nothing Repaired ---------- Nothing Studied --------- None Alien Tech Used ----------------- None Achievements -------------- I Have A Map? Challenges ------------ None Game ------ Seed ThermalVortexMaul Manual? 0 Play Time 00:41:34 Cumulative 17.6 hours Start 2025.11.18 @ 01:43:29 End 2025.11.18 @ 02:26:57 Sessions 1 Manual Loads 0 Difficulty Adventurer Special Mode None Game No. 33 Rogue 1 Adventurer 32 Explorer 0 Win Type - Total 0 Types 0/0/0/0/0/0/0/0/0/0 Lore% 13 Gallery% 22 Achievement% 18 Wizard Run 0 Options --------- Layout 2 ASCII 0 Keyboard 0 Movement Vi Keybinds 0 Fullscreen 1 Font 24/Smallcaps Map View 50x44 Zoom Use 0% Tactical HUD 0 Map Filters NONE Filters NONE Steam 1 RUN: 034a44d0-186a-4836-ae48-bbe04fe7ea77